lending/lending_fUSD_20240411
["ID","MTS","AMOUNT","RATE_DAILY","PERIOD"]
[322203656,1712870012097,-500.0,0.00032054,2]
[322203657,1712870012108,-1787.12,0.00032054,2]
[322203658,1712870012118,-500.0,0.00032054,2]
[322203659,1712870012127,-500.0,0.00032054,2]
[322203660,1712870012137,-500.0,0.00032054,2]
[322203661,1712870012146,-1253.73,0.00032054,2]
[322203662,1712870012156,-735.73,0.00032054,2]
[322203663,1712870012166,-1318.44,0.00032054,2]
[322203664,1712870012176,-700.59,0.00032054,2]
[322203665,1712870012186,-1495.11,0.00032054,2]
[322203666,1712870012197,-521.21,0.00032054,2]
[322203667,1712870012208,-758.95,0.00032054,2]
[322203668,1712870012218,-1654.67,0.00032054,2]
[322203669,1712870012228,-638.47,0.00032054,2]
[322203670,1712870012239,-1164.2,0.00032054,2]
[322203671,1712870012250,-500.0,0.00032054,2]
[322203672,1712870012260,-949.05,0.00032054,2]
[322203673,1712870012271,-777.64,0.00032054,2]
[322203674,1712870012282,-1096.04,0.00032054,2]
[322203675,1712870012293,-646.84,0.00032054,2]
[322203676,1712870012304,-958.72,0.00032054,2]
[322203677,1712870012315,-683.7,0.00032054,2]
[322203678,1712870012326,-897.54,0.00032054,2]
[322203679,1712870012336,-684.68,0.00032054,2]
[322203680,1712870012347,-488.05214352,0.00032054,2]
[322203681,1712870012356,-543.38,0.00032054,2]
[322203682,1712870012366,-809.17,0.00032054,2]
[322203683,1712870012377,-698.14,0.00032054,2]
[322203684,1712870012388,-1067.08,0.00032054,2]
[322203685,1712870012399,-1021.38,0.00032054,2]
[322203686,1712870012411,-784.4,0.00032054,2]
[322203687,1712870012421,-1207.29,0.00032054,2]
[322203688,1712870012431,-853.95,0.00032054,2]
[322203689,1712870012441,-1154.75,0.00032054,2]
[322203690,1712870012451,-1500.39,0.00032054,2]
[322203691,1712870012461,-1102.48,0.00032054,2]
[322203692,1712870012470,-1684.95,0.00032054,2]
[322203693,1712870012481,-864.47,0.00032054,2]
[322203694,1712870012491,-1050.08,0.00032054,2]
[322203695,1712870012501,-1060.45,0.00032054,2]
[322203696,1712870012510,-534.42,0.00032054,2]
[322203697,1712870012519,-727.49,0.00032054,2]
[322203698,1712870012528,-500.0,0.00032054,2]
[322203699,1712870012538,-598.73,0.00032054,2]
[322203700,1712870012547,-500.0,0.00032054,2]
[322203701,1712870012557,-1013.17,0.00032054,2]
[322203702,1712870012567,-552.15,0.00032054,2]
[322203703,1712870012577,-722.75,0.00032054,2]
[322203704,1712870012586,-585.74,0.00032054,2]
[322203705,1712870012596,-1454.96,0.00032054,2]
[322203706,1712870012606,-600.91,0.00032054,2]
[322203707,1712870012618,-627.17,0.00032054,2]
[322203708,1712870012627,-1870.66,0.00032054,2]
[322203709,1712870012638,-921.94,0.00032054,2]
[322203710,1712870012648,-1288.35,0.00032054,2]
[322203711,1712870012657,-670.72,0.00032054,2]
[322203712,1712870012666,-1052.23,0.00032054,2]
[322203713,1712870012677,-1720.31,0.00032054,2]
[322203714,1712870012686,-500.0,0.00032054,2]
[322203715,1712870012695,-2622.22,0.00032054,2]
[322203716,1712870012705,-1850.14,0.00032054,2]
[322203717,1712870012715,-500.0,0.00032054,2]
[322203718,1712870012724,-486.6680162,0.00032054,2]
[322203719,1712870012733,-869.29,0.00032054,2]
[322203720,1712870012743,-933.06,0.00032054,2]
[322203721,1712870012753,-722.11,0.00032054,2]
[322203722,1712870012762,-500.0,0.00032054,2]
[322203723,1712870012771,-1172.68,0.00032054,2]
[322203724,1712870012780,-500.0,0.00032054,2]
[322203725,1712870012789,-1203.46,0.00032054,2]
[322203726,1712870012799,-993.8,0.00032054,2]
[322203727,1712870012808,-500.0,0.00032054,2]
[322203728,1712870012818,-500.0,0.00032054,2]
[322203729,1712870012827,-150.0,0.00032054,2]
[322203730,1712870012836,-1318.86,0.00032054,2]
[322203731,1712870012846,-879.12,0.00032054,2]
[322203732,1712870012855,-1664.67,0.00032054,2]
[322203733,1712870012864,-593.20673782,0.00032054,2]
[322203734,1712870012874,-553.15,0.00032054,2]
[322203735,1712870012885,-916.81,0.00032054,2]
[322203736,1712870012894,-923.4,0.00032054,2]
[322203737,1712870012904,-1597.09,0.00032054,2]
[322203738,1712870012914,-500.0,0.00032054,2]
[322203739,1712870012924,-500.0,0.00032054,2]
[322203740,1712870012935,-500.0,0.00032054,2]
[322203741,1712870012945,-1225.4,0.00032054,2]
[322203742,1712870012955,-1736.6,0.00032054,2]
[322203743,1712870012963,-1687.78,0.00032054,2]
[322203744,1712870012975,-533.65,0.00032054,2]
[322203745,1712870012984,-892.21,0.00032054,2]
[322203746,1712870012993,-698.09,0.00032054,2]
[322203747,1712870013003,-166.34053705,0.00032054,2]
[322203748,1712870013012,-1618.97,0.00032054,2]
[322203749,1712870013021,-500.0,0.00032054,2]
[322203750,1712870013030,-998.14,0.00032054,2]
[322203751,1712870013039,-500.0,0.00032054,2]
[322203752,1712870013048,-1890.51,0.00032054,2]
[322203753,1712870013057,-827.22,0.00032054,2]
[322203754,1712870013067,-586.10009917,0.00032054,2]
[322203755,1712870013076,-500.0,0.00032054,2]
[322203756,1712870013085,-1646.03,0.00032054,2]
[322203757,1712870013094,-911.48,0.00032054,2]
[322203758,1712870013104,-767.01,0.00032054,2]
[322203759,1712870013113,-1116.76,0.00032054,2]
[322203760,1712870013123,-570.82,0.00032054,2]
[322203761,1712870013132,-1022.77,0.00032054,2]
[322203762,1712870013141,-831.5,0.00032054,2]
[322203763,1712870013150,-680.97,0.00032054,2]
[322203764,1712870013159,-500.0,0.00032054,2]
[322203765,1712870013168,-752.98,0.00032054,2]
[322203766,1712870013177,-1499.79,0.00032054,2]
[322203767,1712870013187,-814.1,0.00032054,2]
[322203768,1712870013196,-7400.19,0.00032054,2]
[322203769,1712870013205,-1023.14,0.00032054,2]
[322203770,1712870013214,-700.72,0.00032054,2]
[322203771,1712870013223,-352.77972668,0.00032054,2]
[322203772,1712870013232,-950.09,0.00032054,2]
[322203773,1712870013241,-1871.77,0.00032054,2]
[322203774,1712870013250,-3724.71,0.00032054,2]
[322203775,1712870013259,-5395.14,0.00032054,2]
[322203776,1712870013269,-1464.27,0.00032054,2]
[322203777,1712870013278,-978.66,0.00032054,2]
[322203778,1712870013287,-500.0,0.00032054,2]
[322203779,1712870013297,-693.58,0.00032054,2]
[322203780,1712870013306,-984.51,0.00032054,2]
[322203781,1712870013315,-4620.04,0.00032054,2]
[322203782,1712870013324,-1300.92,0.00032054,2]
[322203783,1712870013333,-934.17,0.00032054,2]
[322203784,1712870013342,-1543.03,0.00032054,2]
[322203785,1712870013351,-5425.41,0.00032054,2]
[322203786,1712870013361,-500.0,0.00032054,2]
[322203787,1712870013370,-1214.31,0.00032054,2]
[322203788,1712870013380,-788.68,0.00032054,2]
[322203789,1712870013389,-613.33,0.00032054,2]
[322203790,1712870013399,-500.0,0.00032054,2]
[322203791,1712870013412,-827.37,0.00032054,2]
[322203792,1712870013421,-1593.55,0.00032054,2]
[322203793,1712870013430,-1948.7,0.00032054,2]
[322203794,1712870013439,-500.0,0.00032054,2]
[322203795,1712870013450,-9749.83,0.00032054,2]
[322203796,1712870013459,-2131.76,0.00032054,2]
[322203797,1712870013469,-1560.14,0.00032054,2]
[322203798,1712870013479,-1518.32,0.00032054,2]
[322203799,1712870013489,-1413.3,0.00032054,2]
[322203800,1712870013499,-661.44,0.00032054,2]
[322203801,1712870013508,-5230.96,0.00032054,2]
[322203802,1712870013518,-2479.01,0.00032054,2]
[322203803,1712870013527,-1464.2,0.00032054,2]
[322203804,1712870013536,-3647.95,0.00032054,2]
[322203805,1712870013546,-1527.36,0.00032054,2]
[322203806,1712870013555,-1358.23,0.00032054,2]
[322203807,1712870013565,-1020.16,0.00032054,2]
[322203808,1712870013575,-668.8,0.00032054,2]
[322203809,1712870013585,-11162.19,0.00032054,2]
[322203810,1712870013595,-3874.31,0.00032054,2]
[322203811,1712870013605,-41084.78,0.00032054,2]
[322203812,1712870013615,-500.0,0.00032054,2]
[322203813,1712870013625,-740.63,0.00032054,2]
[322203814,1712870013634,-500.0,0.00032054,2]
[322203815,1712870013643,-500.0,0.00032054,2]
[322203816,1712870013652,-548.57,0.00032054,2]
[322203817,1712870013666,-7785.82,0.00032054,2]
[322203818,1712870013676,-1513.09,0.00032054,2]
[322203819,1712870013686,-567.17,0.00032054,2]
[322203820,1712870013695,-3631.93,0.00032054,2]
[322203821,1712870013705,-8421.98,0.00032054,2]
[322203822,1712870013714,-3207.81,0.00032054,2]
[322203823,1712870013723,-2311.09,0.00032054,2]
[322203824,1712870013732,-921.98,0.00032054,2]
[322203825,1712870013741,-12662.48,0.00032054,2]
[322203826,1712870013751,-1525.4,0.00032054,2]
[322203827,1712870013760,-1851.69,0.00032054,2]
[322203828,1712870013769,-3131.37,0.00032054,2]
[322203829,1712870013778,-875.02,0.00032054,2]
[322203830,1712870013787,-7402.21,0.00032054,2]
[322203831,1712870013796,-2709.87,0.00032054,2]
[322203832,1712870013805,-500.0,0.00032054,2]
[322203833,1712870013814,-1503.27,0.00032054,2]
[322203834,1712870013824,-2499.54,0.00032054,2]
[322203835,1712870013834,-650.21,0.00032054,2]
[322203836,1712870013843,-5388.34,0.00032054,2]
[322203837,1712870013852,-1676.04,0.00032054,2]
[322203838,1712870013861,-643.01,0.00032054,2]
[322203839,1712870013871,-2309.38,0.00032054,2]
[322203840,1712870013880,-5653.29,0.00032054,2]
[322203841,1712870013890,-928.47,0.00032054,2]
[322203842,1712870013899,-1703.86,0.00032054,2]
[322203843,1712870013908,-790.7,0.00032054,2]
[322203844,1712870013918,-2381.75,0.00032054,2]
[322203845,1712870013927,-852.74,0.00032054,2]
[322203846,1712870013936,-2994.14,0.00032054,2]
[322203847,1712870013946,-500.0,0.00032054,2]
[322203848,1712870013955,-4680.33,0.00032054,2]
[322203849,1712870013964,-21256.33,0.00032054,2]
[322203850,1712870014287,-2204.86,0.00032054,2]
[322203851,1712870014298,-989.07,0.00032054,2]
[322203852,1712870014308,-5675.36,0.00032054,2]
[322203853,1712870014317,-660.51,0.00032054,2]
[322203854,1712870014327,-2867.21,0.00032054,2]
[322203855,1712870014337,-1346.35,0.00032054,2]
[322203856,1712870014347,-2960.74,0.00032054,2]
[322203857,1712870014356,-887.19,0.00032054,2]
[322203858,1712870014366,-1179.12,0.00032054,2]
[322203859,1712870014375,-1283.97,0.00032054,2]
[322203860,1712870014385,-872.68,0.00032054,2]
[322203861,1712870014395,-1502.33,0.00032054,2]
[322203862,1712870014409,-10128.26,0.00032054,2]
[322203863,1712870014418,-683.97,0.00032054,2]
[322203864,1712870014428,-623.58,0.00032054,2]
[322203865,1712870014438,-367.93,0.00032054,2]
[322203866,1712870014449,-1185.71,0.00032054,2]
[322203867,1712870014459,-1427.1,0.00032054,2]
[322203868,1712870014468,-2367.24,0.00032054,2]
[322203869,1712870014479,-500.0,0.00032054,2]
[322203870,1712870014488,-2143.26,0.00032054,2]
[322203871,1712870014499,-1106.87,0.00032054,2]
[322203872,1712870014509,-2686.26,0.00032054,2]
[322203873,1712870014518,-2721.81,0.00032054,2]
[322203874,1712870014527,-3567.1,0.00032054,2]
[322203875,1712870014536,-3548.97,0.00032054,2]
[322203876,1712870014546,-19344.8,0.00032054,2]
[322203877,1712870014555,-1844.22,0.00032054,2]
[322203878,1712870014565,-537.03,0.00032054,2]
[322203879,1712870014575,-1228.02,0.00032054,2]
[322203880,1712870014584,-3053.42,0.00032054,2]
[322203881,1712870014594,-4239.16,0.00032054,2]
[322203882,1712870014603,-1745.12,0.00032054,2]
[322203883,1712870014613,-3035.53,0.00032054,2]
[322203884,1712870014622,-4808.47,0.00032054,2]
[322203885,1712870014631,-2664.5,0.00032054,2]
[322203886,1712870014641,-1373.93,0.00032054,2]
[322203887,1712870014650,-505.74,0.00032054,2]
[322203888,1712870014660,-738.07,0.00032054,2]
[322203889,1712870014669,-1109.77,0.00032054,2]
[322203890,1712870014679,-3190.86,0.00032054,2]
[322203891,1712870014689,-2221.72,0.00032054,2]
[322203892,1712870014699,-2263.75,0.00032054,2]
[322203893,1712870014709,-17424.44,0.00032054,2]
[322203894,1712870014720,-1128.64,0.00032054,2]
[322203895,1712870014730,-612.74,0.00032054,2]
[322203896,1712870014739,-1502.24,0.00032054,2]
[322203897,1712870014749,-17072.27,0.00032054,2]
[322203898,1712870014759,-3052.22,0.00032054,2]
[322203899,1712870014769,-500.0,0.00032054,2]
[322203900,1712870014778,-3640.47,0.00032054,2]
[322203901,1712870014788,-1957.97,0.00032054,2]
[322203902,1712870014797,-955.9,0.00032054,2]
[322203903,1712870014806,-500.0,0.00032054,2]
[322203904,1712870014816,-3659.25,0.00032054,2]
[322203905,1712870014825,-5766.3,0.00032054,2]
[322203906,1712870014835,-3575.16,0.00032054,2]
[322203907,1712870014845,-711.78,0.00032054,2]
[322203908,1712870014854,-7639.5,0.00032054,2]
[322203909,1712870014864,-1392.31,0.00032054,2]
[322203910,1712870014873,-7389.58,0.00032054,2]
[322203911,1712870014882,-3014.69,0.00032054,2]
[322203912,1712870014891,-2191.02,0.00032054,2]
[322203913,1712870014902,-5336.03,0.00032054,2]
[322203914,1712870014912,-1051.14,0.00032054,2]
[322203915,1712870014922,-4291.51,0.00032054,2]
[322203916,1712870014931,-604.03,0.00032054,2]
[322203917,1712870014941,-52708.74,0.00032054,2]
[322203918,1712870014952,-3260.75,0.00032054,2]
[322203919,1712870014961,-5115.15,0.00032054,2]
[322203920,1712870014970,-882.87,0.00032054,2]
[322203921,1712870014979,-5854.93,0.00032054,2]
[322203922,1712870014989,-8061.26,0.00032054,2]
[322203923,1712870014999,-916.85,0.00032054,2]
[322203924,1712870015009,-745.2,0.00032054,2]
[322203925,1712870015019,-7112.46,0.00032054,2]
[322203926,1712870015028,-6099.37,0.00032054,2]
[322203927,1712870015038,-1872.85,0.00032054,2]
[322203928,1712870015049,-1834.17,0.00032054,2]
[322203929,1712870015058,-5187.78,0.00032054,2]
[322203930,1712870015068,-1268.14,0.00032054,2]
[322203931,1712870015079,-1960.92,0.00032054,2]
[322203932,1712870015089,-3993.87,0.00032054,2]
[322203933,1712870015099,-1940.4,0.00032054,2]
[322203934,1712870015109,-1144.44,0.00032054,2]
[322203935,1712870015118,-30065.72,0.00032054,2]
[322203936,1712870015128,-1318.07,0.00032054,2]
[322203937,1712870015138,-3922.38,0.00032054,2]
[322203938,1712870015148,-500.0,0.00032054,2]
[322203939,1712870015158,-1507.79,0.00032054,2]
[322203940,1712870015169,-7272.96,0.00032054,2]
[322203941,1712870015179,-2185.46,0.00032054,2]
[322203942,1712870015190,-1894.92,0.00032054,2]
[322203943,1712870015200,-500.0,0.00032054,2]
[322203944,1712870015210,-739.67,0.00032054,2]
[322203945,1712870015220,-2576.43,0.00032054,2]
[322203946,1712870015229,-500.0,0.00032054,2]
[322203947,1712870015240,-752.22,0.00032054,2]
[322203948,1712870015250,-2674.56,0.00032054,2]
[322203949,1712870015260,-918.8,0.00032054,2]
[322203950,1712870015270,-548.63,0.00032054,2]
[322203951,1712870015280,-636.15,0.00032054,2]
[322203952,1712870015290,-729.18,0.00032054,2]
[322203953,1712870015300,-3486.04,0.00032054,2]
[322203954,1712870015310,-763.21,0.00032054,2]
[322203955,1712870015320,-8034.42,0.00032054,2]
[322203956,1712870015330,-3850.53,0.00032054,2]
[322203957,1712870015340,-1687.56,0.00032054,2]
[322203958,1712870015350,-500.0,0.00032054,2]
[322203959,1712870015360,-4101.12,0.00032054,2]
[322203960,1712870015370,-565.51,0.00032054,2]
[322203961,1712870015381,-2084.11,0.00032054,2]
[322203962,1712870015391,-544.26,0.00032054,2]
[322203963,1712870015404,-544.38,0.00032054,2]
[322203964,1712870015415,-1782.79,0.00032054,2]
[322203965,1712870015425,-3404.95,0.00032054,2]
[322203966,1712870015434,-510.02,0.00032054,2]
[322203967,1712870015445,-500.0,0.00032054,2]
[322203968,1712870015457,-2028.74,0.00032054,2]
[322203969,1712870015468,-500.0,0.00032054,2]
[322203970,1712870015479,-3939.9,0.00032054,2]
[322203971,1712870015489,-733.75,0.00032054,2]
[322203972,1712870015500,-5901.28,0.00032054,2]
[322203973,1712870015510,-2166.88,0.00032054,2]
[322203974,1712870015520,-382.87266059,0.00032054,2]
[322203975,1712870015529,-722.6,0.00032054,2]
[322203976,1712870015539,-538.95,0.00032054,2]
[322203977,1712870015549,-3339.86,0.00032054,2]
[322203978,1712870015559,-1774.88,0.00032054,2]
[322203979,1712870015569,-217.746,0.00032095,2]
[322203980,1712870015579,-214.0,0.00032095,2]
[322203981,1712870015589,-354.0,0.00032095,2]
[322203982,1712870015598,-442.0,0.00032095,2]
[322203983,1712870015608,-150.0,0.00032101,2]
[322203984,1712870015617,-619.71921938,0.00032137,30]
[322203985,1712870015628,-628.806,0.00032144,2]
[322203986,1712870015637,-258.553,0.00032144,2]
[322203987,1712870015647,-157.041205,0.00032148,22]
[322203988,1712870015656,-150.0,0.00032154,2]
[322203989,1712870015666,-150.0,0.00032172,2]
[322203990,1712870015675,-150.0,0.00032215,2]
[322203991,1712870015685,-150.0,0.00032266,2]
[322203992,1712870015694,-619.71921938,0.00032274,30]
[322203993,1712870015704,-150.0,0.00032284,2]
[322203994,1712870015713,-4407.9066789,0.00032306,2]
[322203995,1712870015723,-7013.662753,0.00032306,2]
[322203996,1712870015732,-79624.2987799,0.00032306,2]
[322203997,1712870015742,-507.89,0.00032328,2]
[322203998,1712870015751,-590.86,0.00032328,2]
[322203999,1712870015761,-805.44,0.00032328,2]
[322204000,1712870015770,-629.54,0.00032328,2]
[322204001,1712870015779,-500.0,0.00032328,2]
[322204002,1712870015789,-394.03238274,0.00032328,2]
[322204003,1712870015799,-765.12,0.00032328,2]
[322204004,1712870015809,-500.0,0.00032328,2]
[322204005,1712870015819,-673.55,0.00032328,2]
[322204006,1712870015829,-500.0,0.00032328,2]
[322204007,1712870015838,-500.0,0.00032328,2]
[322204008,1712870015847,-500.0,0.00032328,2]
[322204009,1712870015857,-1055.22,0.00032328,2]
[322204010,1712870015867,-838.26,0.00032328,2]
[322204011,1712870015876,-513.12,0.00032328,2]
[322204012,1712870015885,-561.16,0.00032328,2]
[322204013,1712870015895,-520.88,0.00032328,2]
[322204014,1712870015904,-500.0,0.00032328,2]
[322204015,1712870015914,-532.8,0.00032328,2]
[322204016,1712870015923,-717.66,0.00032328,2]
[322204017,1712870015933,-956.54,0.00032328,2]
[322204018,1712870015943,-498.02505913,0.00032328,2]
[322204019,1712870015953,-527.16,0.00032328,2]
[322204020,1712870015963,-500.0,0.00032328,2]
[322204021,1712870015972,-583.53,0.00032328,2]
[322204022,1712870015982,-503.75471974,0.00032328,2]
[322204023,1712870015992,-500.0,0.00032328,2]
[322204024,1712870016001,-794.27,0.00032328,2]
[322204025,1712870016011,-775.81,0.00032328,2]
[322204026,1712870016020,-1268.53,0.00032328,2]
[322204027,1712870016030,-579.81,0.00032328,2]
[322204028,1712870016039,-683.65,0.00032328,2]
[322204029,1712870016048,-500.0,0.00032328,2]
[322204030,1712870016058,-1283.53,0.00032328,2]
[322204031,1712870016067,-500.0,0.00032328,2]
[322204032,1712870016077,-1242.22,0.00032328,2]
[322204033,1712870016086,-686.6,0.00032328,2]
[322204034,1712870016096,-610.16,0.00032328,2]
[322204035,1712870016105,-964.51,0.00032328,2]
[322204036,1712870016114,-552.23,0.00032328,2]
[322204037,1712870016124,-500.0,0.00032328,2]
[322204038,1712870016133,-500.0,0.00032328,2]
[322204039,1712870016143,-993.58,0.00032328,2]
[322204040,1712870016153,-675.23,0.00032328,2]
[322204041,1712870016164,-1308.49,0.00032328,2]
[322204042,1712870016173,-703.03,0.00032328,2]
[322204043,1712870016183,-564.56,0.00032328,2]
[322204044,1712870016193,-561.9,0.00032328,2]
[322204045,1712870016203,-560.79,0.00032328,2]
[322204046,1712870016213,-1067.51,0.00032328,2]
[322204047,1712870016222,-598.24,0.00032328,2]
[322204048,1712870016232,-691.29,0.00032328,2]
[322204049,1712870016241,-543.32627381,0.00032328,2]
[322204050,1712870016251,-500.0,0.00032328,2]
[322204051,1712870016261,-704.14,0.00032328,2]
[322204052,1712870016271,-645.96,0.00032328,2]
[322204053,1712870016280,-1172.44,0.00032328,2]
[322204054,1712870016290,-1403.78,0.00032328,2]
[322204055,1712870016300,-820.3,0.00032328,2]
[322204056,1712870016310,-868.58,0.00032328,2]
[322204057,1712870016319,-1352.31,0.00032328,2]
[322204058,1712870016329,-1263.1,0.00032328,2]
[322204059,1712870016338,-1192.54,0.00032328,2]
[322204060,1712870016348,-1391.45,0.00032328,2]
[322204061,1712870016358,-811.44,0.00032328,2]
[322204062,1712870016368,-609.69,0.00032328,2]
[322204063,1712870016377,-676.3,0.00032328,2]
[322204064,1712870016387,-540.39,0.00032328,2]
[322204065,1712870016396,-1771.03,0.00032328,2]
[322204066,1712870016410,-541.31,0.00032328,2]
[322204067,1712870016420,-1468.06,0.00032328,2]
[322204068,1712870016429,-862.27,0.00032328,2]
[322204069,1712870016439,-1183.63,0.00032328,2]
[322204070,1712870016452,-500.0,0.00032328,2]
[322204071,1712870016462,-839.54,0.00032328,2]
[322204072,1712870016471,-500.0,0.00032328,2]
[322204073,1712870016481,-1787.12,0.00032328,2]
[322204074,1712870016491,-500.0,0.00032328,2]
[322204075,1712870016500,-500.0,0.00032328,2]
[322204076,1712870016510,-500.0,0.00032328,2]
[322204077,1712870016520,-1253.73,0.00032328,2]
[322204078,1712870016529,-735.73,0.00032328,2]
[322204079,1712870016539,-1318.44,0.00032328,2]
[322204080,1712870016548,-700.59,0.00032328,2]
[322204081,1712870016558,-1495.11,0.00032328,2]
[322204082,1712870016568,-521.21,0.00032328,2]
[322204083,1712870016577,-758.95,0.00032328,2]
[322204084,1712870016586,-1654.67,0.00032328,2]
[322204085,1712870016596,-638.47,0.00032328,2]
[322204086,1712870016606,-1164.2,0.00032328,2]
[322204087,1712870016615,-500.0,0.00032328,2]
[322204088,1712870016625,-949.05,0.00032328,2]
[322204089,1712870016634,-777.64,0.00032328,2]
[322204090,1712870016644,-1096.04,0.00032328,2]
[322204091,1712870016653,-646.84,0.00032328,2]
[322204092,1712870016663,-958.72,0.00032328,2]
[322204093,1712870016672,-683.7,0.00032328,2]
[322204094,1712870016784,-897.54,0.00032328,2]
[322204095,1712870016794,-684.68,0.00032328,2]
[322204096,1712870016803,-543.38,0.00032328,2]
[322204097,1712870016813,-809.17,0.00032328,2]
[322204098,1712870016823,-698.14,0.00032328,2]
[322204099,1712870016833,-1067.08,0.00032328,2]
[322204100,1712870016842,-1021.38,0.00032328,2]
[322204101,1712870016852,-784.4,0.00032328,2]
[322204102,1712870016861,-1207.29,0.00032328,2]
[322204103,1712870016870,-853.95,0.00032328,2]
[322204104,1712870016878,-1154.75,0.00032328,2]
[322204105,1712870016888,-1500.39,0.00032328,2]
[322204106,1712870016896,-1102.48,0.00032328,2]
[322204107,1712870016909,-1684.95,0.00032328,2]
[322204108,1712870016918,-864.47,0.00032328,2]
[322204109,1712870016928,-1050.08,0.00032328,2]
[322204110,1712870016937,-1060.45,0.00032328,2]
[322204111,1712870016946,-534.42,0.00032328,2]
[322204112,1712870016956,-727.49,0.00032328,2]
[322204113,1712870016966,-500.0,0.00032328,2]
[322204114,1712870016975,-598.73,0.00032328,2]
[322204115,1712870016984,-184.55482406,0.00032328,2]
[322204116,1712870016993,-1013.17,0.00032328,2]
[322204117,1712870017002,-552.15,0.00032328,2]
[322204118,1712870017011,-722.75,0.00032328,2]
[322204119,1712870017020,-585.74,0.00032328,2]
[322204120,1712870017029,-1454.96,0.00032328,2]
[322204121,1712870017038,-600.91,0.00032328,2]
[322204122,1712870017047,-627.17,0.00032328,2]
[322204123,1712870017055,-1870.66,0.00032328,2]
[322204124,1712870017064,-921.94,0.00032328,2]
[322204125,1712870017074,-1288.35,0.00032328,2]
[322204126,1712870017083,-670.72,0.00032328,2]
[322204127,1712870017093,-1052.23,0.00032328,2]
[322204128,1712870017102,-1720.31,0.00032328,2]
[322204129,1712870017111,-500.0,0.00032328,2]
[322204130,1712870017120,-2622.22,0.00032328,2]
[322204131,1712870017130,-1850.14,0.00032328,2]
[322204132,1712870017139,-208.20284132,0.00032328,2]
[322204133,1712870017148,-869.29,0.00032328,2]
[322204134,1712870017158,-933.06,0.00032328,2]
[322204135,1712870017167,-722.11,0.00032328,2]
[322204136,1712870017176,-500.0,0.00032328,2]
[322204137,1712870017185,-1172.68,0.00032328,2]
[322204138,1712870017194,-432.17370016,0.00032328,2]
[322204139,1712870017205,-1203.46,0.00032328,2]
[322204140,1712870017213,-993.8,0.00032328,2]
[322204141,1712870017222,-500.0,0.00032328,2]
[322204142,1712870017231,-500.0,0.00032328,2]
[322204143,1712870017240,-150.0,0.00032328,2]
[322204144,1712870017249,-1318.86,0.00032328,2]
[322204145,1712870017258,-879.12,0.00032328,2]
[322204146,1712870017266,-1664.67,0.00032328,2]
[322204147,1712870017276,-553.15,0.00032328,2]
[322204148,1712870017284,-916.81,0.00032328,2]
[322204149,1712870017293,-923.4,0.00032328,2]
[322204150,1712870017302,-1597.09,0.00032328,2]
[322204151,1712870017311,-500.0,0.00032328,2]
[322204152,1712870017321,-500.0,0.00032328,2]
[322204153,1712870017330,-500.0,0.00032328,2]
[322204154,1712870017339,-1225.4,0.00032328,2]
[322204155,1712870017348,-1736.6,0.00032328,2]